fUST/lending_fUST_20240719
["ID","MTS","AMOUNT","RATE_DAILY","PERIOD"]
[332593381,1721322638391,-168.58625209,0.00020912,2]
[332593383,1721322638400,-248.15366783,0.00021,2]
[332593385,1721322638409,-299.66938998,0.00021,2]
[332593387,1721322638419,-424.51340734,0.00021,2]
[332593389,1721322638429,-215.70887239,0.00021011,2]
[332593391,1721322638439,-30000.0,0.00021012,2]
[332593393,1721322638450,-3586.5131256,0.00021012,2]
[332593395,1721322638459,-303.42908265,0.00021071,2]
[332593397,1721322638469,-633.86477,0.00021096,2]
[332593399,1721322638479,-2389.31,0.00021201,6]
[332593401,1721322638488,-166.666666,0.00021223,2]
[332593403,1721322638499,-627.4,0.00021305,2]
[332593405,1721322638508,-293.94282819,0.00021369,2]
[332593406,1721322638518,-180.18721856,0.00021369,2]
[332593407,1721322638527,-456.75949662,0.00021369,2]
[332593408,1721322638536,-180.18721856,0.00021369,2]
[332593410,1721322638546,-166.666666,0.0002137,2]
[332593412,1721322638555,-154.96178437,0.00021469,2]
[332593413,1721322638564,-315.68,0.0002147,3]
[332593414,1721322638574,-1342.19794557,0.00021479,2]
[332593416,1721322638583,-44443.6044085,0.0002148,3]
[332593417,1721322638592,-168.58625209,0.00021483,2]
[332593418,1721322638601,-500.0,0.00021489,2]
[332593419,1721322638611,-196.7156269,0.00021489,2]
[332593420,1721322638620,-484.30877182,0.00021489,2]
[332593421,1721322638629,-317.95957654,0.00021489,2]
[332593422,1721322638639,-568.55844754,0.00021489,2]
[332593423,1721322638648,-1635.71383512,0.0002149,5]
[332593424,1721322638658,-35742.77878285,0.0002149,3]
[332593425,1721322638667,-2000.0,0.0002149,2]
[332593426,1721322638677,-2842.54359995,0.00021491,2]
[332593427,1721322638686,-44443.6044085,0.00021492,3]
[332593428,1721322638695,-588.28947968,0.00021502,2]
[332593429,1721322638704,-44443.6044085,0.00021503,3]
[332593430,1721322638714,-587.0,0.00021514,2]
[332593431,1721322638723,-621.21998446,0.00021561,2]
[332593432,1721322638733,-44443.6044085,0.00021572,3]
[332593433,1721322638745,-44443.6044085,0.00021583,3]
[332593434,1721322638755,-157.09585778,0.00021585,2]
[332593435,1721322638764,-154.93166857,0.00021586,2]
[332593436,1721322638773,-764.38633793,0.00021587,2]
[332593437,1721322638782,-284.01854297,0.00021588,2]
[332593438,1721322638792,-159.90982277,0.00021589,2]
[332593439,1721322638802,-477.3222512,0.00021589,2]
[332593440,1721322638811,-500.0,0.00021589,2]
[332593441,1721322638821,-300.0,0.00021589,2]
[332593442,1721322638830,-645.69848785,0.00021589,2]
[332593443,1721322638840,-500.0,0.00021589,2]
[332593444,1721322638850,-500.0,0.00021589,2]
[332593445,1721322638860,-647.08769334,0.00021589,2]
[332593446,1721322638870,-154.91828839,0.00021589,2]
[332593447,1721322638879,-233.33421311,0.00021589,2]
[332593448,1721322638889,-803.36733613,0.00021589,2]
[332593449,1721322638899,-162.80758887,0.0002159,2]
[332593450,1721322638911,-151.0,0.0002159,2]
[332593451,1721322638921,-158.731412,0.0002159,2]
[332593452,1721322638931,-151.0,0.0002159,2]
[332593453,1721322638944,-151.0,0.0002159,2]
[332593454,1721322638953,-151.0,0.0002159,2]
[332593455,1721322638963,-28343.31665384,0.0002159,3]
[332593476,1721322640251,-16100.28775466,0.0002159,3]
[332593477,1721322640261,-191.164506,0.0002159,2]
[332593479,1721322640271,-191.164506,0.0002159,2]
[332593480,1721322640280,-1500.0,0.0002159,2]
[332593481,1721322640290,-156.4037428,0.0002159,2]
[332593482,1721322640300,-151.0,0.0002159,2]
[332593483,1721322640310,-655.45091936,0.0002159,2]
[332593484,1721322640320,-156.56360323,0.0002159,2]
[332593485,1721322640329,-154.79952594,0.0002159,2]
[332593486,1721322640339,-1500.0,0.00021591,2]
[332593487,1721322640348,-726.35226996,0.00021591,2]
[332593488,1721322640358,-1040.69003001,0.00021591,2]
[332593489,1721322640367,-209.53568661,0.00021591,2]
[332593490,1721322640377,-814.9724551,0.00021591,3]
[332593491,1721322640387,-2708.15551456,0.00021591,2]
[332593492,1721322640397,-240.41852834,0.00021591,2]
[332593493,1721322640406,-1635.32101954,0.00021592,2]
[332593494,1721322640415,-214.92973109,0.00021592,2]
[332593495,1721322640425,-34008.48640902,0.00021592,3]
[332593496,1721322640439,-7145.461599,0.00021592,3]
[332593514,1721322643148,-665.11835025,0.00017807,2]
[332593515,1721322643158,-886.44482597,0.0002159,2]
[332593516,1721322643173,-151.0,0.0002159,2]
[332593517,1721322643183,-3289.65640048,0.00021592,3]
[332593518,1721322643192,-12530.03428,0.000216,2]
[332593519,1721322643202,-374.0,0.000216,2]
[332593520,1721322643443,-748.0,0.000216,2]
[332593521,1721322643453,-748.0,0.000216,2]
[332593522,1721322643463,-40332.1371078,0.000216,2]
[332593559,1721322646206,-162.80758887,0.00021588,2]
[332593560,1721322646217,-30176.04317545,0.000216,2]
[332593561,1721322719570,655.45091936,9.999e-05,2]
[332593562,1721322724641,804.1749019,9.999e-05,2]
[332593563,1721322724671,236.51512811,9.999e-05,2]
[332593564,1721322725449,327.45554314,9.999e-05,2]
[332593565,1721322725470,398.89672682,9.999e-05,2]
[332593566,1721322726754,159.90982277,9.999e-05,2]
[332593567,1721322730393,240.41852834,9.999e-05,2]
[332593568,1721322738363,477.3222512,9.999e-05,2]
[332593569,1721322740460,2708.15551456,9.999e-05,2]
[332593570,1721322769666,341.48992898,0.0001212,2]
[332593571,1721322770138,542.19950564,0.0001212,2]
[332593572,1721322774319,159.90982277,0.0001212,2]
[332593573,1721322774622,588.28947968,0.0001212,2]
[332593574,1721322774907,726.35226996,0.0001212,2]
[332593575,1721322782887,292.46996353,0.0001212,2]
[332593576,1721322784692,2708.15551456,0.0001212,2]
[332593577,1721322812139,542.19950564,0.00014691,2]
[332593578,1721322816664,341.48992898,0.00014691,2]
[332593579,1721322817781,2602.75349185,0.00014691,2]
[332593580,1721322823927,726.35226996,0.00014691,2]
[332593581,1721322825437,456.75949662,0.00014691,2]
[332593582,1721322834265,159.48373067,0.00014691,2]
[332593583,1721322839792,154.96178437,0.00014691,2]
[332593584,1721322857549,180.18721856,0.00014691,2]
[332593594,1721323256157,359.01191263,0.00014691,2]
[332593603,1721323359972,5479.47062839,9.999e-05,2]
[332593604,1721323376727,12487.85378504,0.00014691,2]
[332593607,1721323540638,209.53568661,9.999e-05,2]
[332593609,1721323571925,1798.84851072,0.0001212,2]
[332593610,1721323577084,251.2233445,0.0001212,2]
[332593611,1721323587275,280.92044834,0.0001212,2]
[332593612,1721323607122,161.76136026,0.0001212,2]
[332593613,1721323611733,848.0314238,9.999e-05,2]
[332593615,1721323646726,425.1451949,0.0001212,2]
[332593616,1721323648014,154.94951165,0.0001212,2]
[332593619,1721323670295,540.58085513,0.0001212,2]
[332593622,1721323761511,236.22452928,0.00014691,2]
[332593635,1721323832793,-166.666666,0.00016506,2]
[332593636,1721323832803,-249.954967,0.0001675,2]
[332593637,1721323832813,-300.0,0.00016954,2]
[332593638,1721323832822,-477.3222512,0.00016955,2]
[332593639,1721323832832,-166.666666,0.00016956,2]
[332593640,1721323832841,-287.30766407,0.00017403,2]
[332593641,1721323832851,-2095.52278168,0.00017404,2]
[332593698,1721323838533,-3383.94784671,0.00017404,2]
[332593700,1721323838543,-166.666666,0.00017406,2]
[332593702,1721323838554,-5511.47943235,0.00017766,2]
[332593704,1721323838564,-526.19426647,0.00017766,2]
[332593706,1721323838574,-214.92973109,0.00017767,2]
[332593708,1721323838584,-542.19950564,0.00017767,2]
[332593710,1721323838593,-318.82736005,0.00017767,2]
[332593712,1721323838603,-632.8951323,0.00017767,2]
[332593714,1721323838613,-2842.54359995,0.00017767,2]
[332593716,1721323838623,-567.65464644,0.00017768,2]
[332593718,1721323838632,-993.84320623,0.00017771,2]
[332593720,1721323838643,-359.93470181,0.00017772,2]
[332593722,1721323838652,-195.31716393,0.00017777,2]
[332593724,1721323838663,-909.46908268,0.00017777,2]
[332593726,1721323838672,-590.45069384,0.00017778,2]
[332593728,1721323838683,-935.81729399,0.00017778,2]
[332593730,1721323838695,-532.67305812,0.00017778,2]
[332593732,1721323838705,-1443.81042753,0.00017778,2]
[332593734,1721323838716,-629.43120672,0.00017778,2]
[332593736,1721323838726,-1500.0,0.00017779,2]
[332593738,1721323838736,-215.83191418,0.00017779,2]
[332593740,1721323838745,-341.48992898,0.0001778,2]
[332593742,1721323838755,-518.34284537,0.0001778,2]
[332593744,1721323838765,-526.61897938,0.0001778,2]
[332593746,1721323838774,-524.1077099,0.00017807,2]
[332593747,1721323838783,-155.50059933,0.00017807,2]
[332593749,1721323838793,-166.666666,0.00017856,2]
[332593750,1721323838803,-156.56360323,0.00017999,2]
[332593751,1721323838813,-215.70887239,0.00018,2]
[332593752,1721323838823,-166.666666,0.00018306,2]
[332593753,1721323838832,-1638.1526514,0.00018648,2]
[332593754,1721323838842,-420.0,0.00018649,2]
[332593755,1721323838851,-166.666666,0.00018756,2]
[332593756,1721323838861,-390.62350298,0.000189,2]
[332593757,1721323838871,-814.9724551,0.00019,2]
[332593758,1721323838881,-293.74500543,0.0002,2]
[332593759,1721323838891,-1342.19794557,0.0002,2]
[332593760,1721323838900,-717.84676804,0.0002,2]
[332593761,1721323838910,-500.0,0.00020262,2]
[332593762,1721323838920,-587.0,0.00020514,2]
[332593763,1721323838930,-303.42908264,0.00020822,2]
[332593764,1721323838940,-3586.5131256,0.000209,2]
[332593765,1721323838950,-1408.0,0.00020958,2]
[332593766,1721323838961,-7164.96780269,0.0002099,2]
[332593767,1721323838972,-168.58625209,0.00020996,2]
[332593768,1721323838982,-228.41549423,0.00021,2]
[332593769,1721323838991,-248.15366783,0.00021,2]
[332593770,1721323839001,-424.51340734,0.00021,2]
[332593771,1721323839010,-30000.0,0.00021012,2]
[332593772,1721323839019,-633.864772,0.00021096,2]
[332593773,1721323839029,-2389.31,0.00021222,6]
[332593774,1721323839040,-3586.5131256,0.00021224,2]
[332593775,1721323839049,-303.42908265,0.0002126,2]
[332593776,1721323839058,-627.4,0.00021267,2]
[332593777,1721323839068,-284.67891262,0.00021268,2]
[332593778,1721323839078,-196.7156269,0.00021268,2]
[332593779,1721323839088,-500.0,0.00021268,2]
[332593780,1721323839097,-484.30877182,0.00021268,2]
[332593781,1721323839106,-317.95957654,0.00021268,2]
[332593782,1721323839116,-106623.99068982,0.00021269,2]
[332593783,1721323839126,-166.666666,0.0002137,2]
[332593784,1721323839135,-764.38633793,0.0002149,2]
[332593785,1721323839144,-157.09585778,0.0002149,2]
[332593786,1721323839154,-803.36733613,0.0002149,2]
[332593787,1721323839163,-315.68,0.00021491,3]
[332593788,1721323839173,-43921.8485086,0.00021491,3]
[332593789,1721323839183,-168.58625209,0.000215,2]
[332593790,1721323839194,-154.91828839,0.000215,2]
[332593791,1721323839203,-284.01854297,0.000215,2]
[332593792,1721323839212,-156.4037428,0.00021501,2]
[332593793,1721323839222,-156.48111719,0.00021501,2]
[332593794,1721323839232,-35742.77878285,0.00021501,3]
[332593795,1721323839241,-2000.0,0.00021532,2]
[332593796,1721323839251,-154.79952594,0.00021578,2]
[332593797,1721323839262,-154.93166857,0.00021579,2]
[332593798,1721323839273,-43921.8485086,0.0002159,3]
[332593799,1721323839283,-88045.34638675,0.000216,2]
[332593800,1721323839293,-26797.60836806,0.000216,2]
[332593814,1721323840476,-3202.39163194,0.000216,2]
[332593816,1721323840486,-154.83742071,0.000216,2]
[332593818,1721323840496,-14441.7433342,0.000216,2]
[332593820,1721323840506,-374.0,0.000216,2]
[332593822,1721323840516,-748.0,0.000216,2]
[332593824,1721323840525,-878.0,0.000216,2]
[332593826,1721323840535,-151.0,0.000216,2]
[332593828,1721323840544,-156.402079,0.000216,2]
[332593830,1721323840554,-274.505802,0.000216,2]
[332593832,1721323840564,-151.0,0.000216,2]
[332593834,1721323840574,-151.0,0.000216,2]
[332593836,1721323840584,-151.0,0.000216,2]
[332593838,1721323840594,-151.0,0.000216,2]
[332593840,1721323840604,-3000.0,0.000216,2]
[332593842,1721323840613,-151.0,0.000216,2]
[332593844,1721323840623,-151.0,0.000216,2]
[332593846,1721323840632,-375.39217735,0.00021602,2]
[332593848,1721323840642,-151.0,0.00021609,2]
[332593850,1721323840652,-151.0,0.00021609,2]
[332593852,1721323840662,-151.0,0.00021609,2]
[332593854,1721323840671,-151.0,0.00021609,2]
[332593856,1721323840681,-217.299788,0.00021609,2]
[332593858,1721323840691,-217.299788,0.00021609,2]
[332593860,1721323840700,-151.0,0.00021609,2]
[332593862,1721323840710,-151.0,0.00021609,2]
[332593864,1721323840719,-151.0,0.00021609,2]
[332593866,1721323840729,-181.189365,0.00021609,2]
[332593868,1721323840739,-181.189365,0.00021609,2]
[332593870,1721323840749,-151.0,0.00021609,2]
[332593872,1721323840758,-315.467596,0.00021609,2]
[332593874,1721323840768,-315.467596,0.00021609,2]
[332593876,1721323840777,-151.0,0.00021609,2]
[332593878,1721323840786,-151.0,0.00021609,2]
[332593880,1721323840796,-500.0,0.00021609,2]
[332593882,1721323840806,-300.0,0.00021609,2]
[332593884,1721323840816,-647.08769334,0.00021609,2]
[332593886,1721323840825,-500.0,0.00021609,2]
[332593888,1721323840835,-645.69848785,0.00021609,2]
[332593890,1721323840844,-500.0,0.00021609,2]
[332593892,1721323840854,-3000.0,0.0002161,2]
[332593894,1721323840864,-28662.72407783,0.0002161,3]
[332594029,1721323843666,-1014.5992497,0.0002161,3]
[332594030,1721323843678,-491.4907503,0.0002161,3]
[332594044,1721323846662,-473.81295627,0.00017403,2]
[332594045,1721323846678,-68.38654937,0.00017403,2]
[332594046,1721323846687,-1330.18930162,0.0002161,3]
[332594047,1721323846700,-2216.56958817,0.0002161,3]
[332594063,1721324416852,1019.03002819,9.999e-05,2]
[332594064,1721324416879,480.96997181,9.999e-05,2]
[332594065,1721324469300,1500.0,0.0001212,2]
[332594066,1721324523321,1500.0,0.00014691,2]
[332594067,1721324536469,9624.76461366,0.00014691,2]
[332594068,1721324563922,845.11491107,0.00014691,2]
[332594081,1721324695815,1500.0,9.999e-05,2]
[332594082,1721324725758,284.01854297,0.0001212,2]
[332594084,1721324753799,845.11491107,0.0001212,2]
[332594086,1721324810972,154.79103211,9.999e-05,2]
[332594087,1721324845893,204.69692345,0.0001212,2]
[332594088,1721324849475,157.09585778,0.0001212,2]
[332594089,1721324881212,435.24563021,0.0001212,2]
[332594090,1721324904491,284.67891262,0.00014691,2]
[332594093,1721324941619,-300.0,0.00017402,2]
[332594095,1721324941650,-190.15471888,0.00017403,2]
[332594144,1721325032842,-300.0,0.00017402,2]
[332594146,1721325032853,-5321.32471347,0.00017403,2]
[332594148,1721325032864,-5479.47062839,0.00017403,2]
[332594150,1721325032875,-11585.48109532,0.00017403,2]
[332594152,1721325032885,-163.945813,0.00017609,2]
[332594155,1721325032897,-300.11413652,0.00017772,2]
[332594156,1721325032906,-205.307784,0.00017773,2]
[332594157,1721325032918,-463.55528147,0.00017807,2]
[332594158,1721325032928,-244.11093245,0.00017807,2]
[332594159,1721325032939,-3628.70351228,0.00017824,2]
[332594160,1721325032953,-4255.13798104,0.00017824,2]
[332594161,1721325032968,-178.41992448,0.00017824,2]
[332594162,1721325032980,-473.80958864,0.00017883,2]
[332594179,1721325038572,-2287.14595956,0.00017883,2]
[332594180,1721325038586,-171.2354592,0.00017883,2]
[332594181,1721325038599,-612.2469627,0.00017894,2]
[332594182,1721325038610,-163.945813,0.00018089,2]
[332594183,1721325038621,-171.622479,0.0001837,2]
[332594184,1721325038632,-250.0,0.0001847,2]
[332594185,1721325038643,-163.945813,0.00018569,2]
[332594186,1721325038658,-171.622479,0.00018609,2]
[332594187,1721325038670,-91.59526194,0.00018719,2]
[332594188,1721325038682,-509.80320256,0.00018719,2]
[332594189,1721325038692,-171.622479,0.00018848,2]
[332594190,1721325038703,-438.11037496,0.000189,2]
[332594191,1721325038714,-2214.47142011,0.00018988,2]
[332594192,1721325038726,-814.9724551,0.00019005,2]
[332594193,1721325038736,-1638.1526514,0.00019023,2]
[332594194,1721325038747,-250.0,0.00019041,2]
[332594195,1721325038761,-163.945813,0.00019049,2]
[332594196,1721325038772,-2185.00318263,0.00019056,2]
[332594197,1721325038786,-657.54041732,0.00019056,2]
[332594198,1721325038797,-171.622479,0.00019088,2]
[332594199,1721325038811,-992.47091407,0.00019141,2]
[332594200,1721325038823,-420.0,0.00019142,2]
[332594201,1721325038833,-171.622479,0.00019327,2]
[332594202,1721325038843,-341.48992898,0.00019528,2]
[332594203,1721325038854,-341.48992898,0.00019528,2]
[332594204,1721325038864,-163.945813,0.00019529,2]
[332594205,1721325038875,-2214.47142004,0.00019804,2]
[332594206,1721325038886,-151.72762688,0.000199,2]
[332594207,1721325038897,-18223.24181253,0.0002,2]
[332594208,1721325038908,-717.84676804,0.0002,2]
[332594209,1721325038921,-163.945813,0.00020009,2]
[332594210,1721325038932,-306.0,0.00020278,2]
[332594211,1721325038943,-151.72762688,0.00020303,2]
[332594212,1721325038953,-567.65464644,0.00020323,2]
[332594213,1721325038963,-248.68489287,0.00020324,2]
[332594214,1721325038974,-167.405114,0.00020325,2]
[332594215,1721325038984,-2214.47142004,0.0002062,2]
[332594216,1721325038994,-287.30766407,0.00020674,2]
[332594217,1721325039006,-502.59148455,0.00020675,2]
[332594218,1721325039019,-39.60802109,0.00020675,2]
[332594219,1721325039030,-151.72762688,0.00020705,2]
[332594220,1721325039040,-303.42908264,0.00020858,2]
[332594221,1721325039051,-3586.5131256,0.00020908,2]
[332594222,1721325039061,-248.15366783,0.00021,2]
[332594223,1721325039071,-424.51340734,0.00021,2]
[332594224,1721325039081,-315.68,0.00021002,3]
[332594225,1721325039091,-605.74,0.00021002,3]
[332594226,1721325039101,-30000.0,0.00021012,2]
[332594227,1721325039111,-587.0,0.00021056,2]
[332594228,1721325039121,-189.80119893,0.00021094,2]
[332594229,1721325039131,-154.80649189,0.00021094,2]
[332594230,1721325039142,-154.79103211,0.00021094,2]
[332594231,1721325039153,-484.48249065,0.00021095,2]
[332594232,1721325039163,-188.794905,0.00021096,2]
[332594233,1721325039174,-602.171533,0.00021096,2]
[332594234,1721325039183,-151.72762688,0.00021108,2]
[332594235,1721325039193,-317.95957654,0.00021108,2]
[332594236,1721325039203,-500.0,0.00021108,2]
[332594237,1721325039213,-196.7156269,0.00021108,2]
[332594238,1721325039223,-484.30877182,0.00021108,2]
[332594239,1721325039233,-568.55844754,0.00021108,2]
[332594240,1721325039243,-500.0,0.00021108,2]
[332594241,1721325039253,-500.0,0.00021108,2]
[332594242,1721325039262,-500.0,0.00021108,2]
[332594243,1721325039272,-245.07886,0.00021108,2]
[332594244,1721325039281,-429.27348839,0.00021108,2]
[332594245,1721325039291,-587.00642557,0.00021108,2]
[332594246,1721325039301,-42820.3797182,0.00021109,3]
[332594247,1721325039311,-150.0,0.00021119,2]
[332594248,1721325039321,-504.0,0.00021119,2]
[332594249,1721325039331,-1408.0,0.00021119,2]
[332594250,1721325039341,-235.928,0.00021119,2]
[332594251,1721325039351,-299.66938998,0.00021145,2]
[332594252,1721325039361,-303.42908265,0.00021146,2]
[332594253,1721325039371,-764.38633793,0.00021212,2]
[332594254,1721325039381,-3586.5131256,0.00021213,2]
[332594255,1721325039391,-293.94282819,0.0002128,2]
[332594256,1721325039401,-575.1,0.00021281,2]
[332594257,1721325039411,-621.22215747,0.00021301,2]
[332594258,1721325039421,-166.666666,0.0002137,2]
[332594259,1721325039431,-2214.47142004,0.00021436,2]
[332594260,1721325039440,-242.90786688,0.00021442,2]
[332594261,1721325039450,-803.36733613,0.00021442,2]
[332594262,1721325039461,-154.93166857,0.00021443,2]
[332594263,1721325039472,-156.4037428,0.00021443,2]
[332594264,1721325039482,-156.48111719,0.00021443,2]
[332594265,1721325039492,-500.0,0.000215,7]
[332594266,1721325039503,-500.0,0.000215,7]
[332594267,1721325039513,-500.0,0.000215,7]
[332594268,1721325039525,-500.0,0.000215,7]
[332594269,1721325039536,-528.51,0.000215,7]
[332594270,1721325039546,-151.72762688,0.0002151,2]
[332594271,1721325039558,-375.39217735,0.00021518,2]
[332594272,1721325039568,-35742.77878285,0.00021519,3]
[332594273,1721325039579,-526.19426647,0.00021522,2]
[332594274,1721325039590,-42820.3797182,0.00021523,3]
[332594275,1721325039600,-2000.0,0.00021533,2]
[332594276,1721325039611,-154.91828839,0.00021595,2]
[332594277,1721325039622,-154.79952594,0.00021596,2]
[332594278,1721325039632,-374.0,0.000216,2]
[332594279,1721325039643,-3000.0,0.000216,2]
[332594280,1721325039654,-150.112233,0.000216,2]
[332594281,1721325039666,-7515.4872723,0.0002161,2]
[332594282,1721325039678,-287.42129962,0.0002161,2]
[332594283,1721325039689,-6879.79283946,0.0002161,2]
[332594284,1721325039699,-1137.80479475,0.0002161,2]
[332594285,1721325039711,-8023.19074122,0.0002161,2]
[332594286,1721325039727,-1449.82366188,0.0002161,2]
[332594287,1721325039739,-151.0,0.0002161,2]
[332594288,1721325039749,-236.47046,0.0002161,2]
[332594289,1721325039760,-3000.0,0.0002161,2]
[332594290,1721325039769,-151.0,0.0002161,2]
[332594291,1721325039779,-151.0,0.0002161,2]
[332594292,1721325039791,-151.0,0.0002161,2]
[332594293,1721325039801,-151.0,0.0002161,2]
[332594294,1721325039810,-3000.0,0.0002162,2]
[332594295,1721325039820,-151.0,0.0002162,2]
[332594296,1721325039830,-195.569809,0.0002162,2]
[332594297,1721325039840,-195.569809,0.0002162,2]
[332594298,1721325039849,-151.0,0.0002162,2]
[332594299,1721325039859,-158.546276,0.0002162,2]
[332594300,1721325039870,-151.0,0.0002162,2]
[332594301,1721325039880,-151.0,0.0002162,2]
[332594302,1721325039890,-151.0,0.0002162,2]
[332594303,1721325039900,-1539.842042,0.0002162,2]
[332594304,1721325039910,-797.230395,0.0002162,2]
[332594305,1721325039922,-163.070428,0.0002162,2]
[332594306,1721325039931,-1539.842042,0.0002162,2]
[332594307,1721325039940,-797.230395,0.0002162,2]
[332594309,1721325039950,-163.070428,0.0002162,2]
[332594310,1721325039960,-151.0,0.0002162,2]
[332594311,1721325039969,-313.965128,0.0002162,2]
[332594312,1721325039979,-456.122421,0.0002162,2]
[332594313,1721325039989,-151.0,0.0002162,2]
[332594314,1721325039999,-313.965128,0.0002162,2]
[332594315,1721325040008,-151.0,0.0002162,2]
[332594316,1721325040019,-456.122421,0.0002162,2]
[332594317,1721325040029,-151.0,0.0002162,2]
[332594318,1721325040040,-151.0,0.0002162,2]
[332594319,1721325040052,-151.0,0.0002162,2]
[332594320,1721325040063,-151.0,0.0002162,2]
[332594321,1721325040075,-236.259915,0.0002162,2]
[332594322,1721325040085,-210.156702,0.0002162,2]
[332594323,1721325040337,-210.156702,0.0002162,2]
[332594324,1721325040355,-283.920836,0.0002162,2]
[332594325,1721325040367,-151.0,0.0002162,2]
[332594326,1721325040377,-283.920836,0.0002162,2]
[332594327,1721325040389,-42820.3797182,0.0002162,3]
[332594328,1721325040400,-151.0,0.00021623,2]
[332594330,1721325040410,-155.965023,0.00021623,2]
[332594332,1721325040421,-151.0,0.00021623,2]
[332594334,1721325040431,-151.0,0.00021623,2]
[332594336,1721325040441,-151.0,0.00021623,2]
[332594338,1721325040451,-3000.0,0.0002163,2]
[332594340,1721325040461,-500.0,0.00021632,2]
[332594342,1721325040470,-210.0,0.00021632,2]
[332594344,1721325040479,-451.9889415,0.00021632,2]
[332594346,1721325040489,-502.96138533,0.00021632,2]
[332594349,1721325040500,-500.0,0.00021632,2]
[332594350,1721325040509,-241.71994025,0.00021632,2]
[332594352,1721325040520,-348.0105974,0.00021632,2]
[332594354,1721325040530,-500.0,0.00021632,2]
[332594356,1721325040541,-408.17054657,0.00021632,2]
[332594359,1721325040552,-609.25841878,0.00021632,2]
[332594361,1721325040563,-22888.60712902,0.00021633,5]
[332594363,1721325040573,-1635.71383512,0.00021633,5]
[332594365,1721325040583,-151.0,0.00021633,2]
[332594367,1721325040593,-151.0,0.00021633,2]
[332594369,1721325040603,-151.0,0.00021633,2]
[332594371,1721325040616,-151.0,0.00021633,2]
[332594373,1721325040627,-195.569809,0.00021633,2]
[332594375,1721325040638,-195.569809,0.00021633,2]
[332594377,1721325040649,-151.0,0.00021633,2]
[332594380,1721325040659,-151.0,0.00021633,2]
[332594382,1721325040671,-151.0,0.00021633,2]
[332594384,1721325040682,-151.0,0.00021633,2]
[332594386,1721325040692,-1539.842042,0.00021633,2]
[332594388,1721325040704,-797.230395,0.00021633,2]
[332594390,1721325040717,-163.070428,0.00021633,2]
[332594392,1721325040731,-1539.842042,0.00021633,2]
[332594394,1721325040742,-797.230395,0.00021633,2]
[332594396,1721325040752,-163.070428,0.00021633,2]
[332594398,1721325040763,-151.0,0.00021633,2]
[332594400,1721325040772,-313.965128,0.00021633,2]
[332594402,1721325040782,-456.122421,0.00021633,2]
[332594405,1721325040793,-151.0,0.00021633,2]
[332594407,1721325040806,-313.965128,0.00021633,2]
[332594409,1721325040818,-456.122421,0.00021633,2]
[332594411,1721325040828,-151.0,0.00021633,2]
[332594413,1721325040838,-151.0,0.00021633,2]
[332594415,1721325040848,-151.0,0.00021633,2]
[332594417,1721325040857,-151.0,0.00021633,2]
[332594419,1721325040868,-210.156702,0.00021633,2]
[332594421,1721325040878,-210.156702,0.00021633,2]
[332594423,1721325040888,-283.920836,0.00021633,2]
[332594425,1721325040898,-246.342741,0.00021633,2]
[332594427,1721325040907,-283.920836,0.00021633,2]
[332594428,1721325040917,-171281.518873,0.00021633,3]
[332594429,1721325040931,-3000.0,0.0002164,2]
[332594430,1721325040940,-10448.09656967,0.00021643,2]
[332594431,1721325041046,-28.75957308,0.00021643,2]
[332594432,1721325041088,-181.37182996,0.00020008,2]
[332594433,1721325041098,-382.329012,0.0002162,2]
[332594434,1721325041108,-1950.23915804,0.00021643,2]
[332594435,1721325041119,-394.31092427,0.00021643,2]
[332594612,1721325046784,-248.68489287,0.00020324,2]
[332594613,1721325046795,-211.994,0.00021119,2]
[332594614,1721325046808,-375.39217735,0.00021509,2]
[332594615,1721325046818,-382.329012,0.00021633,2]
[332594616,1721325046829,-22335.8804409,0.00021643,2]
[332594617,1721325046838,-9217.89710164,0.00021643,2]